Workbook

Sheet _Phis(n=3)
A1: λ | B1: 10000 | C1: → | D1: ξ | E1: =lambdatoxi(B1) -> 0.009900499988
A2: ξ*100 | B2: 20 | S2: グラフ | T2: 1 | U2: 2 | V2: 3
A3: ξ | B3: =B2/100 -> 0.2 | D3: 順 位 | E3: 番 号 | F3: 重み | G3: 入力 値 | H3: 順位 計算用 | J3: 順 位 | K3: 番 号 | L3: 値 | M3: 差 異 | N3: 重 み | O3: 累積 重み | P3: g(A) | Q3: 積 | S3: g(A) | T3: =VLOOKUP(T2,$K$4:$Q$6,6,FALSE) -> 1 | U3: =VLOOKUP(U2,$K$4:$Q$6,6,FALSE) -> 0.2 | V3: =VLOOKUP(V2,$K$4:$Q$6,6,FALSE) -> 0.03916007013
A4: λ | B4: =xitolambda(B3) -> 15 | D4: =RANK(H4,H$4:H$6) -> 3 | E4: 1 | F4: 3 | G4: 30 | H4: =G4+0.00001*E4 -> 30.00001 | J4: 1 | K4: =VLOOKUP($J4,$D$4:$H$6,2,FALSE) -> 3 | L4: =VLOOKUP($J4,$D$4:$H$6,4,FALSE) -> 100 | M4: =L4-L5 -> 50 | N4: =VLOOKUP($J4,$D$4:$H$6,3,FALSE)/SUM($F$4:$F$6) -> 0.1666666667 | O4: =N4 -> 0.1666666667 | P4: =Phixi_trans($B$3, O4) -> 0.03916007013 | Q4: =M4*P4 -> 1.958003507 | S4: x | T4: x1 | U4: x2 | V4: x3
A5: u | B5: φs(u) | D5: =RANK(H5,H$4:H$6) -> 2 | E5: 2 | F5: 2 | G5: 50 | H5: =G5+0.00001*E5 -> 50.00002 | J5: 2 | K5: =VLOOKUP($J5,$D$4:$H$6,2,FALSE) -> 2 | L5: =VLOOKUP($J5,$D$4:$H$6,4,FALSE) -> 50 | M5: =L5-L6 -> 20 | N5: =VLOOKUP($J5,$D$4:$H$6,3,FALSE)/SUM($F$4:$F$6) -> 0.3333333333 | O5: =O4 + N5 -> 0.5 | P5: =Phixi_trans($B$3, O5) -> 0.2 | Q5: =M5*P5 -> 4 | S5: 0 | T5: =IF(T$3>=$S5,$G$4,0) -> 30 | U5: =IF(U$3>=$S5,$G$5,0) -> 50 | V5: =IF(V$3>=$S5,$G$6,0) -> 100
A6: 0 | B6: =Phixi_trans($B$3, A6) -> 0 | D6: =RANK(H6,H$4:H$6) -> 1 | E6: 3 | F6: 1 | G6: 100 | H6: =G6+0.00001*E6 -> 100.00003 | J6: 3 | K6: =VLOOKUP($J6,$D$4:$H$6,2,FALSE) -> 1 | L6: =VLOOKUP($J6,$D$4:$H$6,4,FALSE) -> 30 | M6: =L6-L7 -> 30 | N6: =VLOOKUP($J6,$D$4:$H$6,3,FALSE)/SUM($F$4:$F$6) -> 0.5 | O6: =O5+N6 -> 1 | P6: =Phixi_trans($B$3, O6) -> 1 | Q6: =M6*P6 -> 30 | S6: =P4 -> 0.03916007013 | T6: 30 | U6: 50 | V6: 100
A7: =1*10^(-20) -> 1e-20 | B7: =Phixi_trans($B$3, A7) -> 0 | L7: 0 | P7: 合計 | Q7: =SUM(Q4:Q6) -> 35.95800351 | S7: =S6+0.000000001+S6/100000 -> 0.03916046273 | T7: 30 | U7: 50 | V7: 0
A8: 0.05 | B8: 0.009913223666 | F8: ショケ積分値 | G8: =c_int(B3,3,G4:G6,F4:F6) -> 35.95800351 | P8: 関数で計算 | Q8: =c_int($B$3,3,G4:G6,F4:F6) -> 35.95800351 | S8: =P5 -> 0.2 | T8: 30 | U8: 50 | V8: 0
A9: =A8+0.05 -> 0.1 | B9: 0.02130052738 | S9: =S8+0.000000001+S8/100000 -> 0.200002001 | T9: 30 | U9: 0 | V9: 0
A10: 0.15 | B10: 0.03438110443 | S10: =P6 -> 1 | T10: 30 | U10: 0 | V10: 0
A11: 0.2 | B11: 0.04940674177 | S11: =S10+S10/100000 -> 1.00001 | T11: 0 | U11: 0 | V11: 0
A12: 0.25 | B12: 0.06666666667
A13: 0.3 | B13: 0.086493114
A14: 0.35 | B14: 0.1092677214
A15: 0.4 | B15: 0.1354288755
A16: 0.45 | B16: 0.1654801502
A17: 0.5 | B17: 0.2
A18: 0.55 | B18: 0.2396528947
A19: 0.6 | B19: 0.2852021095
A20: 0.65 | B20: 0.3375244177
A21: 0.7 | B21: 0.3976269671
A22: 0.75 | B22: 0.4666666667
A23: 0.8 | B23: 0.545972456
A24: 0.85 | B24: 0.6370708857
A25: 0.9 | B25: 0.7417155021
A26: 0.95 | B26: 0.8619206008
A27: =1-1*10^(-20) -> 1 | B27: 1
A28: 1 | B28: 1

Sheet n=3
A1: Choquet 積分モデルl | G1: n=3 | T1: グラフ | U1: 1 | V1: =U1+1 -> 2 | W1: =V1+1 -> 3
A2: 入力値の順位 | F2: ファジィ測度 | J2: 計算表 | T2: μ(A) | U2: =VLOOKUP(U1,$K$4:$R$6,7,FALSE) -> 1 | V2: =VLOOKUP(V1,$K$4:$R$6,7,FALSE) -> 0.3 | W2: =VLOOKUP(W1,$K$4:$R$6,7,FALSE) -> 0.6
A3: 順 位 | B3: 番 号 | C3: 入力 値 | D3: 順位 計算用 | F3: 集合 番号 | G3: 集合 | H3: 値 | J3: 順 位 | K3: 番 号 | L3: 値 | M3: 差 異 | N3: 加算要素 | O3: 集合 番号 | P3: 集合 (A) | Q3: μ(A) | R3: 積 | T3: x | U3: ｘ1 | V3: ｘ2 | W3: ｘ3
A4: =RANK(D4,D$4:D$6) -> 3 | B4: 1 | C4: 0.2 | D4: =C4+0.00001*B4 -> 0.20001 | F4: 0 | G4: =vtoset(3,F4) -> {} | H4: 0 | J4: 1 | K4: =VLOOKUP($J4,$A$4:$C$6,2,FALSE) -> 2 | L4: =VLOOKUP($J4,$A$4:$C$6,3,FALSE) -> 0.9 | M4: =L4-L5 -> 0.5 | N4: =2^(K4-1) -> 2 | O4: =N4 -> 2 | P4: =vtoset(3,O4) -> {2} | Q4: =VLOOKUP(O4,$F$4:$H$11,3,FALSE) -> 0.3 | R4: =M4*Q4 -> 0.15 | T4: 0 | U4: =IF(U$2>=$T4,$C$4,0) -> 0.2 | V4: =IF(V$2>=$T4,$C$5,0) -> 0.9 | W4: =IF(W$2>=$T4,$C$6,0) -> 0.4
A5: =RANK(D5,D$4:D$6) -> 1 | B5: 2 | C5: 0.9 | D5: =C5+0.00001*B5 -> 0.90002 | F5: 1 | G5: =vtoset(3,F5) -> {1} | H5: 0.5 | J5: 2 | K5: =VLOOKUP($J5,$A$4:$C$6,2,FALSE) -> 3 | L5: =VLOOKUP($J5,$A$4:$C$6,3,FALSE) -> 0.4 | M5: =L5-L6 -> 0.2 | N5: =2^(K5-1) -> 4 | O5: =O4 + N5 -> 6 | P5: =vtoset(3,O5) -> {2,3} | Q5: =VLOOKUP(O5,$F$4:$H$11,3,FALSE) -> 0.6 | R5: =M5*Q5 -> 0.12 | T5: =Q4 -> 0.3 | U5: =IF(U$2>=$T5,$C$4,0) -> 0.2 | V5: =IF(V$2>=$T5,$C$5,0) -> 0.9 | W5: =IF(W$2>=$T5,$C$6,0) -> 0.4
A6: =RANK(D6,D$4:D$6) -> 2 | B6: 3 | C6: 0.4 | D6: =C6+0.00001*B6 -> 0.40003 | F6: 2 | G6: {2} | H6: 0.3 | J6: 3 | K6: =VLOOKUP($J6,$A$4:$C$6,2,FALSE) -> 1 | L6: =VLOOKUP($J6,$A$4:$C$6,3,FALSE) -> 0.2 | M6: =L6-L7 -> 0.2 | N6: =2^(K6-1) -> 1 | O6: =O5+N6 -> 7 | P6: =vtoset(3,O6) -> {1,2,3} | Q6: =VLOOKUP(O6,$F$4:$H$11,3,FALSE) -> 1 | R6: =M6*Q6 -> 0.2 | T6: =T5+T5/100000 -> 0.300003 | U6: 0.2 | V6: 0 | W6: 0.4
F7: 3 | G7: {1,2} | H7: 0.9 | L7: 0 | Q7: 合計 | R7: =SUM(R4:R6) -> 0.47 | T7: =Q5 -> 0.6 | U7: 0.2 | V7: 0 | W7: 0.4
A8: Shapley値 | F8: 4 | G8: {3} | H8: 0.2 | Q8: 関数で計算 | R8: =ex_Choquet_int(3,H4:H11,C4:C6) -> 0.47 | T8: =T7+T7/100000 -> 0.600006 | U8: 0.2 | V8: 0 | W8: 0
A9: 1 | B9: =ex_Shapleyv(3,A9,$H$4:$H$11) -> 0.4833333333 | F9: 5 | G9: {1,3} | H9: 0.7 | T9: =Q6 -> 1 | U9: 0.2 | V9: 0 | W9: 0
A10: 2 | B10: =ex_Shapleyv(3,A10,$H$4:$H$11) -> 0.3333333333 | F10: 6 | G10: {2,3} | H10: 0.6 | T10: =T9+T9/100000 -> 1.00001 | U10: 0 | V10: 0 | W10: 0
A11: 3 | B11: =ex_Shapleyv(3,A11,$H$4:$H$11) -> 0.1833333333 | F11: 7 | G11: {1,2,3} | H11: 1

Sheet n=4
A1: Choquet 積分モデルl | E1: n=4 | U1: グラフ | V1: 1 | W1: =V1+1 -> 2 | X1: =W1+1 -> 3 | Y1: =X1+1 -> 4
B2: 入力 | G2: ファジィ測度 | K2: 計算表 | U2: ファジィ測度値 | V2: =VLOOKUP(V1,$L$4:$S$6,7,FALSE) -> 10 | W2: =VLOOKUP(W1,$L$4:$S$6,7,FALSE) -> 50 | X2: =VLOOKUP(X1,$L$4:$S$6,7,FALSE) -> 80 | Y2: =VLOOKUP(Y1,$L$4:$S$7,7,FALSE) -> 110
B3: 順位 | C3: 番号 | D3: 入力値 | G3: 集合番号 | H3: 集合 | I3: 値 | K3: 順位 | L3: 番号 | M3: 値 | N3: 差異 | O3: 要素 | P3: 集合番号 | Q3: 集合(A) | R3: g(A) | S3: 積 | U3: x | V3: h(1) | W3: h(2) | X3: h(3) | Y3: h(4)
B4: =RANK(E4,E$4:E$7) -> 1 | C4: 1 | D4: 15 | E4: =D4+0.00001*C4 -> 15.00001 | G4: 0 | H4: =vtoset(4,G4) -> {} | I4: 0 | K4: 1 | L4: =VLOOKUP($K4,$B$4:$D$7,2,FALSE) -> 1 | M4: =VLOOKUP($K4,$B$4:$D$7,3,FALSE) -> 15 | N4: =M4-M5 -> 1 | O4: =2^(L4-1) -> 1 | P4: =O4 -> 1 | Q4: =vtoset(4,P4) -> {1} | R4: =VLOOKUP(P4,$G$4:$I$19,3,FALSE) -> 10 | S4: =N4*R4 -> 10 | U4: 0 | V4: =IF(V$2>=$U4,$D$4,0) -> 15 | W4: =IF(W$2>=$U4,$D$5,0) -> 14 | X4: =IF(X$2>=$U4,$D$6,0) -> 13 | Y4: =IF(Y$2>=$U4,$D$7,0) -> 8
B5: =RANK(E5,E$4:E$7) -> 2 | C5: 2 | D5: 14 | E5: =D5+0.00001*C5 -> 14.00002 | G5: =G4+1 -> 1 | H5: =vtoset(4,G5) -> {1} | I5: 10 | K5: 2 | L5: =VLOOKUP($K5,$B$4:$D$7,2,FALSE) -> 2 | M5: =VLOOKUP($K5,$B$4:$D$7,3,FALSE) -> 14 | N5: =M5-M6 -> 1 | O5: =2^(L5-1) -> 2 | P5: =P4+O5 -> 3 | Q5: =vtoset(4,P5) -> {1,2} | R5: =VLOOKUP(P5,$G$4:$I$19,3,FALSE) -> 50 | S5: =N5*R5 -> 50 | U5: =R4 -> 10 | V5: 15 | W5: 14 | X5: 13 | Y5: =IF(Y$2>=$U5,$D$7,0) -> 8
B6: =RANK(E6,E$4:E$7) -> 3 | C6: 3 | D6: 13 | E6: =D6+0.00001*C6 -> 13.00003 | G6: =G5+1 -> 2 | H6: {2} | I6: 20 | K6: 3 | L6: =VLOOKUP($K6,$B$4:$D$7,2,FALSE) -> 3 | M6: =VLOOKUP($K6,$B$4:$D$7,3,FALSE) -> 13 | N6: =M6-M7 -> 5 | O6: =2^(L6-1) -> 4 | P6: =P5+O6 -> 7 | Q6: =vtoset(4,P6) -> {1,2,3} | R6: =VLOOKUP(P6,$G$4:$I$19,3,FALSE) -> 80 | S6: =N6*R6 -> 400 | U6: =U5+U5/100000 -> 10.0001 | V6: 0 | W6: 14 | X6: 13 | Y6: 8
B7: =RANK(E7,E$4:E$7) -> 4 | C7: 4 | D7: 8 | E7: =D7+0.00001*C7 -> 8.00004 | G7: 3 | H7: {1,2} | I7: 50 | K7: 4 | L7: =VLOOKUP($K7,$B$4:$D$7,2,FALSE) -> 4 | M7: =VLOOKUP($K7,$B$4:$D$7,3,FALSE) -> 8 | N7: =M7-M8 -> 8 | O7: =2^(L7-1) -> 8 | P7: =P6+O7 -> 15 | Q7: =vtoset(4,P7) -> {1,2,3,4} | R7: =VLOOKUP(P7,$G$4:$I$19,3,FALSE) -> 110 | S7: =N7*R7 -> 880 | U7: =R5 -> 50 | V7: 0 | W7: 14 | X7: 13 | Y7: 8
G8: 4 | H8: {3} | I8: 30 | M8: 0 | R8: 合計 | S8: =SUM(S4:S7) -> 1340 | U8: =U7+U7/100000 -> 50.0005 | V8: 0 | W8: 0 | X8: 13 | Y8: 8
G9: 5 | H9: {1,3} | I9: 60 | R9: 関数で計算 | S9: =ex_Choquet_int(4,I4:I19,D4:D7) -> 1340 | U9: =R6 -> 80 | V9: 0 | W9: 0 | X9: 13 | Y9: 8
G10: 6 | H10: {2,3} | I10: 70 | U10: =U9+U9/100000 -> 80.0008 | V10: 0 | W10: 0 | X10: 0 | Y10: 8
G11: 7 | H11: {1,2,3} | I11: 80 | U11: =R7 -> 110 | V11: 0 | W11: 0 | X11: 0 | Y11: 8
G12: 8 | H12: {4} | I12: 10 | U12: =U11+U11/100000 -> 110.0011 | V12: 0 | W12: 0 | X12: 0 | Y12: 0
G13: 9 | H13: {1,4} | I13: 30
G14: 10 | H14: {2,4} | I14: 50
G15: 11 | H15: {1,2,4} | I15: 70
G16: 12 | H16: {3,4} | I16: 80
G17: 13 | H17: {1,3,4} | I17: 90
G18: 14 | H18: {2,3,4} | I18: 100
G19: 15 | H19: {1,2,3,4} | I19: 110

Sheet n
A1: Choquet 積分モデルl
B2: n | C2: 8 | D2: (max=8) | R2: 関数で計算 | S2: =ex_Choquet_int(C2,I5:I260,D5:D12) -> 174820 | U2: グラフ | V2: 1 | W2: =V2+1 -> 2 | X2: =W2+1 -> 3 | Y2: =X2+1 -> 4 | Z2: 5 | AA2: 6 | AB2: 7 | AC2: 8
B3: 入力 | G3: ファジィ測度 | K3: 計算表 | R3: 合計 | S3: =SUM(S5:S12) -> 174820 | U3: ファジィ測度値 | V3: =IF(V2<=$C$2,VLOOKUP(V2,$L$5:$S$12,7,FALSE),"") -> 1030 | W3: =IF(W2<=$C$2,VLOOKUP(W2,$L$5:$S$12,7,FALSE),"") -> 1020 | X3: 2350 | Y3: 2590 | Z3: 2510 | AA3: 1000 | AB3: 680 | AC3: 2310
B4: 順位 | C4: 番号 | D4: 入力値 | G4: 集合番号 | H4: 集合 | I4: 値 | K4: 順位 | L4: 番号 | M4: 値 | N4: 差異 | O4: 要素 | P4: 集合番号 | Q4: 集合(A) | R4: g(A) | S4: 積 | U4: x | V4: h(1) | W4: h(2) | X4: h(3) | Y4: h(4) | Z4: h(5) | AA4: h(6) | AB4: h(7) | AC4: h(8)
B5: =IF(E5<>"",RANK(E5,E$5:E$12),"") -> 4 | C5: 1 | D5: 52 | E5: =IF(C5<=$C$2,D5+0.00001*C5,"") -> 52.00001 | G5: 0 | H5: =vtoset($C$2,G5) -> {} | I5: 0 | K5: 1 | L5: =IF($K5<=$C$2,VLOOKUP($K5,$B$5:$E$12,2,FALSE),"") -> 7 | M5: =IF($K5<=$C$2,VLOOKUP($K5,$B$5:$E$12,3,FALSE),0) -> 100 | N5: =M5-M6 -> 5 | O5: =IF($K5<=$C$2,2^(L5-1),"") -> 64 | P5: =IF($K5<=$C$2,O5,"") -> 64 | Q5: =IF($K5<=$C$2,vtoset($C$2,P5),"") -> {7} | R5: =IF($K5<=$C$2,VLOOKUP(P5,$G$5:$I$260,3,FALSE),"") -> 680 | S5: =IF($K5<=$C$2,N5*R5,"") -> 3400 | U5: 0 | V5: =IF(V$2<=$C$2,IF(V$3>=$U5,$D$5,0),"") -> 52 | W5: =IF(W$2<=$C$2,IF(W$3>=$U5,$D$6,0),"") -> 55 | X5: =IF(X$2<=$C$2,IF(X$3>=$U5,$D$7,0),"") -> 50 | Y5: =IF(Y$2<=$C$2,IF(Y$3>=$U5,$D$8,0),"") -> 30 | Z5: =IF(Z$2<=$C$2,IF(Z$3>=$U5,$D$9,0),"") -> 40 | AA5: =IF(AA$2<=$C$2,IF(AA$3>=$U5,$D$10,0),"") -> 95 | AB5: =IF(AB$2<=$C$2,IF(AB$3>=$U5,$D$11,0),"") -> 100 | AC5: =IF(AC$2<=$C$2,IF(AC$3>=$U5,$D$12,0),"") -> 50
B6: =IF(E6<>"",RANK(E6,E$5:E$12),"") -> 3 | C6: =C5+1 -> 2 | D6: 55 | E6: =IF(C6<=$C$2,D6+0.00001*C6,"") -> 55.00002 | G6: =G5+1 -> 1 | H6: =vtoset($C$2,G6) -> {1} | I6: 60 | K6: =K5+1 -> 2 | L6: =IF($K6<=$C$2,VLOOKUP($K6,$B$5:$E$12,2,FALSE),"") -> 6 | M6: =IF($K6<=$C$2,VLOOKUP($K6,$B$5:$E$12,3,FALSE),0) -> 95 | N6: =M6-M7 -> 40 | O6: =IF($K6<=$C$2,2^(L6-1),"") -> 32 | P6: =IF($K6<=$C$2,P5+O6,"") -> 96 | Q6: =IF($K6<=$C$2,vtoset($C$2,P6),"") -> {6,7} | R6: =IF($K6<=$C$2,VLOOKUP(P6,$G$5:$I$260,3,FALSE),"") -> 1000 | S6: =IF($K6<=$C$2,N6*R6,"") -> 40000 | U6: =IF(R5<>"",R5,U5+0.00001) -> 680 | V6: =IF(V$2<=$C$2,IF(V$3>=$U6,$D$5,0),"") -> 52 | W6: =IF(W$2<=$C$2,IF(W$3>=$U6,$D$6,0),"") -> 55 | X6: =IF(X$2<=$C$2,IF(X$3>=$U6,$D$7,0),"") -> 50 | Y6: =IF(Y$2<=$C$2,IF(Y$3>=$U6,$D$8,0),"") -> 30 | Z6: =IF(Z$2<=$C$2,IF(Z$3>=$U6,$D$9,0),"") -> 40 | AA6: =IF(AA$2<=$C$2,IF(AA$3>=$U6,$D$10,0),"") -> 95 | AB6: =IF(AB$2<=$C$2,IF(AB$3>=$U6,$D$11,0),"") -> 100 | AC6: =IF(AC$2<=$C$2,IF(AC$3>=$U6,$D$12,0),"") -> 50
B7: 6 | C7: 3 | D7: 50 | E7: 50.00003 | G7: 2 | H7: =vtoset($C$2,G7) -> {2} | I7: 70 | K7: =K6+1 -> 3 | L7: 2 | M7: 55 | N7: 3 | O7: 2 | P7: =IF($K7<=$C$2,P6+O7,"") -> 98 | Q7: {2,6,7} | R7: 1020 | S7: 3060 | U7: =IF(U6<>"",U6+0.00001,"") -> 680.00001 | V7: 52 | W7: 55 | X7: 50 | Y7: 30 | Z7: 40 | AA7: 95 | AB7: 0 | AC7: 50
B8: 8 | C8: 4 | D8: 30 | E8: 30.00004 | G8: 3 | H8: =vtoset($C$2,G8) -> {1,2} | I8: 75 | K8: 4 | L8: 1 | M8: 52 | N8: 2 | O8: 1 | P8: 99 | Q8: {1,2,6,7} | R8: 1030 | S8: 2060 | U8: =IF(R6<>"",R6,U7+0.00001) -> 1000 | V8: 52 | W8: 55 | X8: 50 | Y8: 30 | Z8: 40 | AA8: 95 | AB8: 0 | AC8: 50
B9: 7 | C9: 5 | D9: 40 | E9: 40.00005 | G9: 4 | H9: {3} | I9: 80 | K9: 5 | L9: 8 | M9: 50 | N9: 0 | O9: 128 | P9: 227 | Q9: {1,2,6,7,8} | R9: 2310 | S9: 0 | U9: =IF(U8<>"",U8+0.00001,"") -> 1000.00001 | V9: 52 | W9: 55 | X9: 50 | Y9: 30 | Z9: 40 | AA9: 0 | AB9: 0 | AC9: 50
B10: 2 | C10: 6 | D10: 95 | E10: 95.00006 | G10: 5 | H10: {1,3} | I10: 90 | K10: 6 | L10: 3 | M10: 50 | N10: 10 | O10: 4 | P10: 231 | Q10: {1,2,3,6,7,8} | R10: 2350 | S10: 23500 | U10: =IF(R7<>"",R7,U9+0.00001) -> 1020 | V10: 52 | W10: 55 | X10: 50 | Y10: 30 | Z10: 40 | AA10: 0 | AB10: 0 | AC10: 50
B11: 1 | C11: 7 | D11: 100 | E11: 100.00007 | G11: 6 | H11: {2,3} | I11: 100 | K11: 7 | L11: 5 | M11: 40 | N11: 10 | O11: 16 | P11: 247 | Q11: {1,2,3,5,6,7,8} | R11: 2510 | S11: 25100 | U11: =IF(U10<>"",U10+0.00001,"") -> 1020.00001 | V11: 52 | W11: 0 | X11: 50 | Y11: 30 | Z11: 40 | AA11: 0 | AB11: 0 | AC11: 50
B12: 5 | C12: 8 | D12: 50 | E12: 50.00008 | G12: 7 | H12: {1,2,3} | I12: 110 | K12: 8 | L12: 4 | M12: 30 | N12: 30 | O12: 8 | P12: 255 | Q12: {1,2,3,4,5,6,7,8} | R12: 2590 | S12: 77700 | U12: =IF(R8<>"",R8,U11+0.00001) -> 1030 | V12: 52 | W12: 0 | X12: 50 | Y12: 30 | Z12: 40 | AA12: 0 | AB12: 0 | AC12: 50
G13: 8 | H13: {4} | I13: 120 | M13: 0 | U13: =IF(U12<>"",U12+0.00001,"") -> 1030.00001 | V13: 0 | W13: 0 | X13: 50 | Y13: 30 | Z13: 40 | AA13: 0 | AB13: 0 | AC13: 50
B14: Shapley値 | G14: 9 | H14: {1,4} | I14: 130 | U14: =IF(R9<>"",R9,U13+0.00001) -> 2310 | V14: 0 | W14: 0 | X14: 50 | Y14: 30 | Z14: 40 | AA14: 0 | AB14: 0 | AC14: 50
B15: 1 | C15: =IF(B15<=$C$2,ex_Shapleyv($C$2,B15,$I$5:$I$260),"") -> 16.16071429 | G15: 10 | H15: {2,4} | I15: 140 | U15: =IF(U14<>"",U14+0.00001,"") -> 2310.00001 | V15: 0 | W15: 0 | X15: 50 | Y15: 30 | Z15: 40 | AA15: 0 | AB15: 0 | AC15: 0
B16: =B15+1 -> 2 | C16: =IF(B16<=$C$2,ex_Shapleyv($C$2,B16,$I$5:$I$260),"") -> 26.16071429 | G16: 11 | H16: {1,2,4} | I16: 150 | U16: =IF(R10<>"",R10,U15+0.00001) -> 2350 | V16: 0 | W16: 0 | X16: 50 | Y16: 30 | Z16: 40 | AA16: 0 | AB16: 0 | AC16: 0
B17: =B16+1 -> 3 | C17: 44.61309524 | G17: 12 | H17: {3,4} | I17: 160 | U17: =IF(U16<>"",U16+0.00001,"") -> 2350.00001 | V17: 0 | W17: 0 | X17: 0 | Y17: 30 | Z17: 40 | AA17: 0 | AB17: 0 | AC17: 0
B18: 4 | C18: 84.61309524 | G18: 13 | H18: {1,3,4} | I18: 170 | U18: =IF(R11<>"",R11,U17+0.00001) -> 2510 | V18: 0 | W18: 0 | X18: 0 | Y18: 30 | Z18: 40 | AA18: 0 | AB18: 0 | AC18: 0
B19: 5 | C19: 164.6130952 | G19: 14 | H19: {2,3,4} | I19: 180 | U19: =IF(U18<>"",U18+0.00001,"") -> 2510.00001 | V19: 0 | W19: 0 | X19: 0 | Y19: 30 | Z19: 0 | AA19: 0 | AB19: 0 | AC19: 0
B20: 6 | C20: 324.6130952 | G20: 15 | H20: {1,2,3,4} | I20: =I19+10 -> 190 | U20: =IF(R12<>"",R12,U19+0.00001) -> 2590 | V20: 0 | W20: 0 | X20: 0 | Y20: 30 | Z20: 0 | AA20: 0 | AB20: 0 | AC20: 0
B21: 7 | C21: 644.6130952 | G21: 16 | H21: {5} | I21: =I20+10 -> 200 | U21: =IF(U20<>"",U20+0.00001,"") -> 2590.00001 | V21: 0 | W21: 0 | X21: 0 | Y21: 0 | Z21: 0 | AA21: 0 | AB21: 0 | AC21: 0
B22: 8 | C22: 1284.613095 | G22: 17 | H22: {1,5} | I22: 210
G23: 18 | H23: {2,5} | I23: 220
G24: 19 | H24: {1,2,5} | I24: 230
G25: 20 | H25: {3,5} | I25: 240
G26: 21 | H26: {1,3,5} | I26: 250
G27: 22 | H27: {2,3,5} | I27: 260
G28: 23 | H28: {1,2,3,5} | I28: 270
G29: 24 | H29: {4,5} | I29: 280
G30: 25 | H30: {1,4,5} | I30: 290
G31: 26 | H31: {2,4,5} | I31: 300
G32: 27 | H32: {1,2,4,5} | I32: 310
G33: 28 | H33: {3,4,5} | I33: 320
G34: 29 | H34: {1,3,4,5} | I34: 330
G35: 30 | H35: {2,3,4,5} | I35: 340
G36: 31 | H36: {1,2,3,4,5} | I36: 350
G37: 32 | H37: {6} | I37: 360
G38: 33 | H38: {1,6} | I38: 370
G39: 34 | H39: {2,6} | I39: 380
G40: 35 | H40: {1,2,6} | I40: 390
G41: 36 | H41: {3,6} | I41: 400
G42: 37 | H42: {1,3,6} | I42: 410
G43: 38 | H43: {2,3,6} | I43: 420
G44: 39 | H44: {1,2,3,6} | I44: 430
G45: 40 | H45: {4,6} | I45: 440
G46: 41 | H46: {1,4,6} | I46: 450
G47: 42 | H47: {2,4,6} | I47: 460
G48: 43 | H48: {1,2,4,6} | I48: 470
G49: 44 | H49: {3,4,6} | I49: 480
G50: 45 | H50: {1,3,4,6} | I50: 490
G51: 46 | H51: {2,3,4,6} | I51: 500
G52: 47 | H52: {1,2,3,4,6} | I52: 510
G53: 48 | H53: {5,6} | I53: 520
G54: 49 | H54: {1,5,6} | I54: 530
G55: 50 | H55: {2,5,6} | I55: 540
G56: 51 | H56: {1,2,5,6} | I56: 550
G57: 52 | H57: {3,5,6} | I57: 560
G58: 53 | H58: {1,3,5,6} | I58: 570
G59: 54 | H59: {2,3,5,6} | I59: 580
G60: 55 | H60: {1,2,3,5,6} | I60: 590
G61: 56 | H61: {4,5,6} | I61: 600
G62: 57 | H62: {1,4,5,6} | I62: 610
G63: 58 | H63: {2,4,5,6} | I63: 620
G64: 59 | H64: {1,2,4,5,6} | I64: 630
G65: 60 | H65: {3,4,5,6} | I65: 640
G66: 61 | H66: {1,3,4,5,6} | I66: 650
G67: 62 | H67: {2,3,4,5,6} | I67: 660
G68: 63 | H68: {1,2,3,4,5,6} | I68: 670
G69: 64 | H69: {7} | I69: 680
G70: =G69+1 -> 65 | H70: {1,7} | I70: 690
G71: 66 | H71: {2,7} | I71: 700
G72: 67 | H72: =vtoset($C$2,G72) -> {1,2,7} | I72: 710
G73: 68 | H73: {3,7} | I73: 720
G74: 69 | H74: {1,3,7} | I74: 730
G75: 70 | H75: {2,3,7} | I75: 740
G76: 71 | H76: {1,2,3,7} | I76: 750
G77: 72 | H77: {4,7} | I77: 760
G78: 73 | H78: {1,4,7} | I78: 770
G79: 74 | H79: {2,4,7} | I79: 780
G80: 75 | H80: {1,2,4,7} | I80: 790
G81: 76 | H81: {3,4,7} | I81: 800
G82: 77 | H82: {1,3,4,7} | I82: 810
G83: 78 | H83: {2,3,4,7} | I83: 820
G84: 79 | H84: {1,2,3,4,7} | I84: 830
G85: 80 | H85: {5,7} | I85: =I84+10 -> 840
G86: 81 | H86: {1,5,7} | I86: 850
G87: 82 | H87: {2,5,7} | I87: 860
G88: 83 | H88: {1,2,5,7} | I88: 870
G89: 84 | H89: {3,5,7} | I89: 880
G90: 85 | H90: {1,3,5,7} | I90: 890
G91: 86 | H91: {2,3,5,7} | I91: 900
G92: 87 | H92: {1,2,3,5,7} | I92: 910
G93: 88 | H93: {4,5,7} | I93: 920
G94: 89 | H94: {1,4,5,7} | I94: 930
G95: 90 | H95: {2,4,5,7} | I95: 940
G96: 91 | H96: {1,2,4,5,7} | I96: 950
G97: 92 | H97: {3,4,5,7} | I97: 960
G98: 93 | H98: {1,3,4,5,7} | I98: 970
G99: 94 | H99: {2,3,4,5,7} | I99: 980
G100: 95 | H100: {1,2,3,4,5,7} | I100: 990
G101: 96 | H101: {6,7} | I101: 1000
G102: 97 | H102: {1,6,7} | I102: 1010
G103: 98 | H103: {2,6,7} | I103: 1020
G104: 99 | H104: {1,2,6,7} | I104: 1030
G105: 100 | H105: {3,6,7} | I105: 1040
G106: 101 | H106: {1,3,6,7} | I106: 1050
G107: 102 | H107: {2,3,6,7} | I107: 1060
G108: 103 | H108: {1,2,3,6,7} | I108: 1070
G109: 104 | H109: {4,6,7} | I109: 1080
G110: 105 | H110: {1,4,6,7} | I110: 1090
G111: 106 | H111: {2,4,6,7} | I111: 1100
G112: 107 | H112: {1,2,4,6,7} | I112: 1110
G113: 108 | H113: {3,4,6,7} | I113: 1120
G114: 109 | H114: {1,3,4,6,7} | I114: 1130
G115: 110 | H115: {2,3,4,6,7} | I115: 1140
G116: 111 | H116: {1,2,3,4,6,7} | I116: 1150
G117: 112 | H117: {5,6,7} | I117: 1160
G118: 113 | H118: {1,5,6,7} | I118: 1170
G119: 114 | H119: {2,5,6,7} | I119: 1180
G120: 115 | H120: {1,2,5,6,7} | I120: 1190
G121: 116 | H121: {3,5,6,7} | I121: 1200
G122: 117 | H122: {1,3,5,6,7} | I122: 1210
G123: 118 | H123: {2,3,5,6,7} | I123: 1220
G124: 119 | H124: {1,2,3,5,6,7} | I124: 1230
G125: 120 | H125: {4,5,6,7} | I125: 1240
G126: 121 | H126: {1,4,5,6,7} | I126: 1250
G127: 122 | H127: {2,4,5,6,7} | I127: 1260
G128: 123 | H128: {1,2,4,5,6,7} | I128: 1270
G129: 124 | H129: {3,4,5,6,7} | I129: 1280
G130: 125 | H130: {1,3,4,5,6,7} | I130: 1290
G131: 126 | H131: {2,3,4,5,6,7} | I131: 1300
G132: 127 | H132: {1,2,3,4,5,6,7} | I132: 1310
G133: 128 | H133: {8} | I133: 1320
G134: =G133+1 -> 129 | H134: {1,8} | I134: 1330
G135: 130 | H135: {2,8} | I135: 1340
G136: 131 | H136: =vtoset($C$2,G136) -> {1,2,8} | I136: 1350
G137: 132 | H137: {3,8} | I137: 1360
G138: 133 | H138: {1,3,8} | I138: 1370
G139: 134 | H139: {2,3,8} | I139: 1380
G140: 135 | H140: {1,2,3,8} | I140: 1390
G141: 136 | H141: {4,8} | I141: 1400
G142: 137 | H142: {1,4,8} | I142: 1410
G143: 138 | H143: {2,4,8} | I143: 1420
G144: 139 | H144: {1,2,4,8} | I144: 1430
G145: 140 | H145: {3,4,8} | I145: 1440
G146: 141 | H146: {1,3,4,8} | I146: 1450
G147: 142 | H147: {2,3,4,8} | I147: 1460
G148: 143 | H148: {1,2,3,4,8} | I148: 1470
G149: 144 | H149: {5,8} | I149: =I148+10 -> 1480
G150: 145 | H150: {1,5,8} | I150: 1490
G151: 146 | H151: {2,5,8} | I151: 1500
G152: 147 | H152: {1,2,5,8} | I152: 1510
G153: 148 | H153: {3,5,8} | I153: 1520
G154: 149 | H154: {1,3,5,8} | I154: 1530
G155: 150 | H155: {2,3,5,8} | I155: 1540
G156: 151 | H156: {1,2,3,5,8} | I156: 1550
G157: 152 | H157: {4,5,8} | I157: 1560
G158: 153 | H158: {1,4,5,8} | I158: 1570
G159: 154 | H159: {2,4,5,8} | I159: 1580
G160: 155 | H160: {1,2,4,5,8} | I160: 1590
G161: 156 | H161: {3,4,5,8} | I161: 1600
G162: 157 | H162: {1,3,4,5,8} | I162: 1610
G163: 158 | H163: {2,3,4,5,8} | I163: 1620
G164: 159 | H164: {1,2,3,4,5,8} | I164: 1630
G165: 160 | H165: {6,8} | I165: 1640
G166: 161 | H166: {1,6,8} | I166: 1650
G167: 162 | H167: {2,6,8} | I167: 1660
G168: 163 | H168: {1,2,6,8} | I168: 1670
G169: 164 | H169: {3,6,8} | I169: 1680
G170: 165 | H170: {1,3,6,8} | I170: 1690
G171: 166 | H171: {2,3,6,8} | I171: 1700
G172: 167 | H172: {1,2,3,6,8} | I172: 1710
G173: 168 | H173: {4,6,8} | I173: 1720
G174: 169 | H174: {1,4,6,8} | I174: 1730
G175: 170 | H175: {2,4,6,8} | I175: 1740
G176: 171 | H176: {1,2,4,6,8} | I176: 1750
G177: 172 | H177: {3,4,6,8} | I177: 1760
G178: 173 | H178: {1,3,4,6,8} | I178: 1770
G179: 174 | H179: {2,3,4,6,8} | I179: 1780
G180: 175 | H180: {1,2,3,4,6,8} | I180: 1790
G181: 176 | H181: {5,6,8} | I181: 1800
G182: 177 | H182: {1,5,6,8} | I182: 1810
G183: 178 | H183: {2,5,6,8} | I183: 1820
G184: 179 | H184: {1,2,5,6,8} | I184: 1830
G185: 180 | H185: {3,5,6,8} | I185: 1840
G186: 181 | H186: {1,3,5,6,8} | I186: 1850
G187: 182 | H187: {2,3,5,6,8} | I187: 1860
G188: 183 | H188: {1,2,3,5,6,8} | I188: 1870
G189: 184 | H189: {4,5,6,8} | I189: 1880
G190: 185 | H190: {1,4,5,6,8} | I190: 1890
G191: 186 | H191: {2,4,5,6,8} | I191: 1900
G192: 187 | H192: {1,2,4,5,6,8} | I192: 1910
G193: 188 | H193: {3,4,5,6,8} | I193: 1920
G194: 189 | H194: {1,3,4,5,6,8} | I194: 1930
G195: 190 | H195: {2,3,4,5,6,8} | I195: 1940
G196: 191 | H196: {1,2,3,4,5,6,8} | I196: 1950
G197: 192 | H197: {7,8} | I197: 1960
G198: =G197+1 -> 193 | H198: {1,7,8} | I198: 1970
G199: 194 | H199: {2,7,8} | I199: 1980
G200: 195 | H200: =vtoset($C$2,G200) -> {1,2,7,8} | I200: 1990
... 60 more rows

Sheet Sugeno
A1: 菅野積分モデル | G1: n=3
A2: 入力値の順位 | F2: ファジィ測度 | J2: 計算表
A3: 順 位 | B3: 番 号 | C3: 入力 値 | D3: 順位 計算用 | F3: 集合 番号 | G3: 集合 | H3: 値 | J3: 順 位 | K3: 番 号 | L3: 値 | M3: 加算要素 | N3: 集合 番号 | O3: 集合 (A) | P3: μ(A) | Q3: 最小値
A4: =RANK(D4,D$4:D$6) -> 3 | B4: 1 | C4: 0.2 | D4: =C4+0.00001*B4 -> 0.20001 | F4: 0 | G4: =vtoset(3,F4) -> {} | H4: 0 | J4: 1 | K4: =VLOOKUP($J4,$A$4:$C$6,2,FALSE) -> 2 | L4: =VLOOKUP($J4,$A$4:$C$6,3,FALSE) -> 0.9 | M4: =2^(K4-1) -> 2 | N4: =M4 -> 2 | O4: =vtoset(3,N4) -> {2} | P4: =VLOOKUP(N4,$F$4:$H$11,3,FALSE) -> 0.3 | Q4: =MIN(L4,P4) -> 0.3
A5: =RANK(D5,D$4:D$6) -> 1 | B5: 2 | C5: 0.9 | D5: =C5+0.00001*B5 -> 0.90002 | F5: 1 | G5: {1} | H5: 0.5 | J5: 2 | K5: =VLOOKUP($J5,$A$4:$C$6,2,FALSE) -> 3 | L5: =VLOOKUP($J5,$A$4:$C$6,3,FALSE) -> 0.4 | M5: =2^(K5-1) -> 4 | N5: =N4 + M5 -> 6 | O5: =vtoset(3,N5) -> {2,3} | P5: =VLOOKUP(N5,$F$4:$H$11,3,FALSE) -> 0.6 | Q5: =MIN(L5,P5) -> 0.4
A6: =RANK(D6,D$4:D$6) -> 2 | B6: 3 | C6: 0.4 | D6: =C6+0.00001*B6 -> 0.40003 | F6: 2 | G6: {2} | H6: 0.3 | J6: 3 | K6: =VLOOKUP($J6,$A$4:$C$6,2,FALSE) -> 1 | L6: =VLOOKUP($J6,$A$4:$C$6,3,FALSE) -> 0.2 | M6: =2^(K6-1) -> 1 | N6: =N5+M6 -> 7 | O6: =vtoset(3,N6) -> {1,2,3} | P6: =VLOOKUP(N6,$F$4:$H$11,3,FALSE) -> 1 | Q6: =MIN(L6,P6) -> 0.2
F7: 3 | G7: {1,2} | H7: 0.9 | L7: 0 | P7: 最大値 | Q7: =MAX(Q4:Q6) -> 0.4
A8: Shapley値 | F8: 4 | G8: {3} | H8: 0.2
A9: 1 | B9: =ex_Shapleyv(3,A9,$H$4:$H$11) -> 0.4833333333 | F9: 5 | G9: {1,3} | H9: 0.7 | P9: 関数で計算 | Q9: =ex_sugeno_int(3,$H$4:$H$11,$C$4:$C$6) -> 0.4
A10: 2 | B10: =ex_Shapleyv(3,A10,$H$4:$H$11) -> 0.3333333333 | F10: 6 | G10: {2,3} | H10: 0.6
A11: 3 | B11: =ex_Shapleyv(3,A11,$H$4:$H$11) -> 0.1833333333 | F11: 7 | G11: {1,2,3} | H11: 1

Sheet 入力の数基準
A1: このシートの説明は，解説には含まれていません．「ファジィ測度・ファジィ積分用 マクロの使い方」の使い方を参照してください．
A3: 入力の数基準によるファジィ測度の割り当て
A5: n=4の場合
B6: ファジィ測度同定のためのパラメータ | F6: 同定したファジィ測度 | K6: 同定したファジィ測度 | P6: 同定したファジィ測度
F7: 関数ex_vasfm_xiinpnを利用 | K7: 関数phxi_transを利用 | P7: 関数phs_transを利用
F8: 集合番号 | G8: 集合 | H8: ファジィ測度 | K8: 集合番号 | L8: 集合 | M8: 重みの和 | N8: ファジィ測度 | P8: ファジィ測度
B9: n | C9: 4 | F9: 0 | G9: =vtoset($C$9,F9) -> {} | H9: =ex_vasfm_xiinpn($C$9,$C$17,$C$11:$C$14,F9) -> 0 | K9: 0 | L9: =vtoset($C$9,K9) -> {} | M9: 0 | N9: =Phixi_trans($C$17,M9) -> 0 | P9: =phis_trans($C$21,M9) -> 0
B10: 重み | F10: =F9+1 -> 1 | G10: =vtoset($C$9,F10) -> {1} | H10: =ex_vasfm_xiinpn($C$9,$C$17,$C$11:$C$14,F10) -> 0.0257116226 | K10: =K9+1 -> 1 | L10: =vtoset($C$9,K10) -> {1} | M10: =L28 -> 0.1176470588 | N10: =Phixi_trans($C$17,M10) -> 0.0257116226 | P10: =phis_trans($C$21,M10) -> 0.0257116226
B11: w1 | C11: 2 | F11: =F10+1 -> 2 | G11: {2} | H11: 0.1421296588 | K11: =K10+1 -> 2 | L11: {2} | M11: =L29 -> 0.4117647059 | N11: 0.1421296588 | P11: 0.1421296588
B12: w2 | C12: 7 | F12: 3 | G12: {1,2} | H12: 0.2226570436 | K12: 3 | L12: {1,2} | M12: =M10+M11 -> 0.5294117647 | N12: 0.2226570436 | P12: 0.2226570436
B13: w3 | C13: 5 | F13: 4 | G13: {3} | H13: 0.08401543779 | K13: 4 | L13: {3} | M13: =L30 -> 0.2941176471 | N13: 0.08401543779 | P13: 0.08401543779
B14: w4 | C14: 3 | F14: 5 | G14: {1,3} | H14: 0.1421296588 | K14: 5 | L14: {1,3} | M14: =M10+M13 -> 0.4117647059 | N14: 0.1421296588 | P14: 0.1421296588
F15: 6 | G15: {2,3} | H15: 0.4052613792 | K15: 6 | L15: {2,3} | M15: =M11+M13 -> 0.7058823529 | N15: 0.4052613792 | P15: 0.4052613792
F16: 7 | G16: {1,2,3} | H16: 0.5872719164 | K16: 7 | L16: {1,2,3} | M16: =M12+M13 -> 0.8235294118 | N16: 0.5872719164 | P16: 0.5872719164
B17: ξ | C17: 0.2 | F17: 8 | G17: {4} | H17: 0.04207613113 | K17: 8 | L17: {4} | M17: =L31 -> 0.1764705882 | N17: 0.04207613113 | P17: 0.04207613113
F18: 9 | G18: {1,4} | H18: 0.08401543779 | K18: 9 | L18: {1,4} | M18: =M$17+M10 -> 0.2941176471 | N18: 0.08401543779 | P18: 0.08401543779
F19: 10 | G19: {2,4} | H19: 0.2739097824 | K19: 10 | L19: {2,4} | M19: =M$17+M11 -> 0.5882352941 | N19: 0.2739097824 | P19: 0.2739097824
B20: λ | C20: =xitolambda(C17) -> 15 | F20: 11 | G20: {1,2,4} | H20: 0.4052613792 | K20: 11 | L20: {1,2,4} | M20: 0.7058823529 | N20: 0.4052613792 | P20: 0.4052613792
B21: s | C21: =C20+1 -> 16 | F21: 12 | G21: {3,4} | H21: 0.1791172376 | K21: 12 | L21: {3,4} | M21: 0.4705882353 | N21: 0.1791172376 | P21: 0.1791172376
B22: ξ | C22: =lambdatoxi(C20) -> 0.2 | F22: 13 | G22: {1,3,4} | H22: 0.2739097824 | K22: 13 | L22: {1,3,4} | M22: 0.5882352941 | N22: 0.2739097824 | P22: 0.2739097824
F23: 14 | G23: {2,3,4} | H23: 0.7031149744 | K23: 14 | L23: {2,3,4} | M23: 0.8823529412 | N23: 0.7031149744 | P23: 0.7031149744
F24: 15 | G24: {1,2,3,4} | H24: 1 | K24: 15 | L24: {1,2,3,4} | M24: 1 | N24: 1 | P24: 1
A27: ショケ積分 | K27: 正規化した重み
B28: h(1) | C28: 20 | K28: w1 | L28: =C11/SUM($C$11:$C$14) -> 0.1176470588
B29: h(2) | C29: 30 | K29: w2 | L29: =C12/SUM($C$11:$C$14) -> 0.4117647059
B30: h(3) | C30: 80 | K30: w3 | L30: =C13/SUM($C$11:$C$14) -> 0.2941176471
B31: h(4) | C31: 50 | K31: w4 | L31: =C14/SUM($C$11:$C$14) -> 0.1764705882
A33: 上記のようにファジィ測度をすべて展開してからショケ積分値を求める
B34: =ex_Choquet_int(C9,H9:H24,C28:C31) -> 33.13395763
A37: 重み，ξ，入力値から直接求める(c_int)
B38: =c_int(C17,C9,C28:C31,C11:C14) -> 33.13395763

Sheet シングルトンファジィ測度比率基準
A1: このシートの説明は，解説には含まれていません．「ファジィ測度・ファジィ積分用 マクロの使い方」の使い方を参照してください．
A3: シングルトンファジィ測度比率基準によるファジィ測度の割り当て
A5: n=4の場合
B7: ファジィ測度同定のためのパラメータ | F7: 同定したファジィ測度 | J7: 検証
F8: 集合番号 | G8: 集合 | H8: ファジィ測度 | J8: 重みの比率 | L8: 正規化
B9: n | C9: 4 | F9: 0 | G9: =vtoset($C$9,F9) -> {} | H9: =ex_vasfm_xisinglton($C$9,$C$17,$C$11:$C$14,F9) -> 0 | J9: w1 | K9: =C11 -> 2 | L9: =K9/$K$13 -> 0.1176470588
B10: 重み | F10: =F9+1 -> 1 | G10: =vtoset($C$9,F10) -> {1} | H10: =ex_vasfm_xisinglton($C$9,$C$17,$C$11:$C$14,F10) -> 0.033076 | J10: w2 | K10: =C12 -> 7 | L10: =K10/$K$13 -> 0.4117647059
B11: w1 | C11: 2 | F11: =F10+1 -> 2 | G11: {2} | H11: 0.115766 | J11: w3 | K11: =C13 -> 5 | L11: =K11/$K$13 -> 0.2941176471
B12: w2 | C12: 7 | F12: 3 | G12: {1,2} | H12: 0.2062781432 | J12: w4 | K12: =C14 -> 3 | L12: =K12/$K$13 -> 0.1764705882
B13: w3 | C13: 5 | F13: 4 | G13: {3} | H13: 0.08269 | J13: 合計 | K13: =SUM(K9:K12) -> 17 | L13: =SUM(L9:L12) -> 1
B14: w4 | C14: 3 | F14: 5 | G14: {1,3} | H14: 0.1567918166
F15: 6 | G15: {2,3} | H15: 0.3420463581 | J15: シングルトンの値 | L15: 正規化
F16: 7 | G16: {1,2,3} | H16: 0.5448252382 | J16: {1} | K16: =H10 -> 0.033076 | L16: =K16/$K$20 -> 0.1176470588
B17: ξ | C17: 0.2 | F17: 8 | G17: {4} | H17: 0.049614 | J17: {2} | K17: =H11 -> 0.115766 | L17: =K17/$K$20 -> 0.4117647059
F18: 9 | G18: {1,4} | H18: 0.10730549 | J18: {3} | K18: =H13 -> 0.08269 | L18: =K18/$K$20 -> 0.2941176471
F19: 10 | G19: {2,4} | H19: 0.2515342149 | J19: {4} | K19: =H17 -> 0.049614 | L19: =K19/$K$20 -> 0.1764705882
B20: λ | C20: =xitolambda(C17) -> 15 | F20: 11 | G20: {1,2,4} | H20: 0.4094064002 | J20: 合計 | K20: =SUM(K16:K19) -> 0.281146 | L20: =SUM(L16:L19) -> 1
B21: s | C21: =C20+1 -> 16 | F21: 12 | G21: {3,4} | H21: 0.1938427249
B22: ξ | C22: =lambdatoxi(C20) -> 0.2 | F22: 13 | G22: {1,3,4} | H22: 0.3230918544
F23: 14 | G23: {2,3,4} | H23: 0.6462146783
F24: 15 | G24: {1,2,3,4} | H24: 0.9999036287

Sheet Shapley値基準
A1: このシートの説明は，解説には含まれていません．「ファジィ測度・ファジィ積分用 マクロの使い方」の使い方を参照してください．
A3: Shapley値基準によるファジィ測度の割り当て
A5: n=4の場合
B7: ファジィ測度同定のためのパラメータ | F7: 同定したファジィ測度 | J7: 検証
F8: 集合番号 | G8: 集合 | H8: ファジィ測度 | J8: 重みの比率 | L8: 正規化
B9: n | C9: 4 | F9: 0 | G9: =vtoset($C$9,F9) -> {} | H9: =ex_vasfm_xishapleyv($C$9,$C$17,$C$11:$C$14,F9) -> 0 | J9: w1 | K9: =C11 -> 2 | L9: =K9/$K$13 -> 0.1176470588
B10: 重み | F10: =F9+1 -> 1 | G10: =vtoset($C$9,F10) -> {1} | H10: =ex_vasfm_xishapleyv($C$9,$C$17,$C$11:$C$14,F10) -> 0.02257425532 | J10: w2 | K10: =C12 -> 7 | L10: =K10/$K$13 -> 0.4117647059
B11: w1 | C11: 2 | F11: =F10+1 -> 2 | G11: {2} | H11: 0.1599547234 | J11: w3 | K11: =C13 -> 5 | L11: =K11/$K$13 -> 0.2941176471
B12: w2 | C12: 7 | F12: 3 | G12: {1,2} | H12: 0.2366918602 | J12: w4 | K12: =C14 -> 3 | L12: =K12/$K$13 -> 0.1764705882
B13: w3 | C13: 5 | F13: 4 | G13: {3} | H13: 0.0825572766 | J13: 合計 | K13: =SUM(K9:K12) -> 17 | L13: =SUM(L9:L12) -> 1
B14: w4 | C14: 3 | F14: 5 | G14: {1,3} | H14: 0.1330865675
F15: 6 | G15: {2,3} | H15: 0.4405933951 | J15: Shapley値
F16: 7 | G16: {1,2,3} | H16: 0.6123586674 | J16: 1 | K16: =ex_Shapleyv($C$9,J16,$H$9:$H$24) -> 0.117629582
B17: ξ | C17: 0.2 | F17: 8 | G17: {4} | H17: 0.03805374468 | J17: 2 | K17: =ex_Shapleyv($C$9,J17,$H$9:$H$24) -> 0.4116517645
F18: 9 | G18: {1,4} | H18: 0.07351352422 | J18: 3 | K18: 0.2940743913
F19: 10 | G19: {2,4} | H19: 0.2893116112 | J19: 4 | K19: 0.17659478
B20: λ | C20: =xitolambda(C17) -> 15 | F20: 11 | G20: {1,2,4} | H20: 0.4098507791
B21: s | C21: =C20+1 -> 16 | F21: 12 | G21: {3,4} | H21: 0.1677352242
B22: ξ | C22: =lambdatoxi(C20) -> 0.2 | F22: 13 | G22: {1,3,4} | H22: 0.2471069461
F23: 14 | G23: {2,3,4} | H23: 0.7301405683
F24: 15 | G24: {1,2,3,4} | H24: 0.9999505178

Sheet mfvalue
A1: このシートの説明は，解説には含まれていません．「ファジィ測度・ファジィ積分用 マクロの使い方」の使い方を参照してください．
G2: グラフ
G3: 距離 | H3: メンバーシップ値
B4: 距離 | C4: メンバーシップ値 | G4: -300 | H4: =mfvalue(5,G4,$B$5:$B$9,$C$5:$C$9) -> 0
B5: -200 | C5: 0 | G5: =G4+100 -> -200 | H5: 0
B6: 400 | C6: 0.6 | G6: =G5+100 -> -100 | H6: 0.1
B7: 800 | C7: 1 | G7: 0 | H7: 0.2
B8: 1200 | C8: 0.6 | G8: 100 | H8: 0.3
B9: 2000 | C9: 0 | G9: 200 | H9: 0.4
G10: 300 | H10: 0.5
G11: 400 | H11: 0.6
B12: 入力（距離） | C12: 850 | G12: 500 | H12: 0.7
G13: 600 | H13: 0.8
G14: 700 | H14: 0.9
B15: 出力値 | C15: =mfvalue(5,C12,$B$5:$B$9,$C$5:$C$9) -> 0.95 | G15: 800 | H15: 1
G16: 900 | H16: 0.9
G17: 1000 | H17: 0.8
G18: 1100 | H18: 0.7
G19: 1200 | H19: 0.6
G20: 1300 | H20: 0.525
G21: 1400 | H21: 0.45
G22: 1500 | H22: 0.375
G23: 1600 | H23: 0.3
G24: 1700 | H24: 0.225
G25: 1800 | H25: 0.15
G26: 1900 | H26: 0.075
G27: 2000 | H27: 0
G28: 2100 | H28: 0
G29: 2200 | H29: 0

Sheet cont_eval
G2: グラフ
B3: 希望値との比 | C3: 満足度 | G3: 入力値
B4: 0.3 | C4: 0 | G4: 0 | H4: =cont_eval(G4,$C$12,$B$4:$C$8) -> 0
B5: 0.8 | C5: 0.6 | G5: =G4+50 -> 50 | H5: =cont_eval(G5,$C$12,$B$4:$C$8) -> 0
B6: 1 | C6: 1 | G6: =G5+50 -> 100 | H6: 0
B7: 1.2 | C7: 0.6 | G7: 150 | H7: 0
B8: 1.5 | C8: 0 | G8: 200 | H8: 0.12
G9: 250 | H9: 0.24
G10: 300 | H10: 0.36
G11: 350 | H11: 0.48
B12: 希望値 | C12: 500 | G12: 400 | H12: 0.6
B13: 入力値 | C13: 600 | G13: 450 | H13: 0.8
G14: 500 | H14: 1
B15: 満足度 | C15: =cont_eval($C$13,$C$12,$B$4:$C$8) -> 0.6 | G15: 550 | H15: 0.8
G16: 600 | H16: 0.6
G17: 650 | H17: 0.4
G18: 700 | H18: 0.2
G19: 750 | H19: 0
G20: 800 | H20: 0
G21: 850 | H21: 0

Sheet descreate_eval
B3: 対応表 | C3: 赤 | D3: 青 | E3: 黄 | F3: 緑 | G3: 黒 | H3: ←入力値
B4: 赤 | C4: 0.9 | D4: 0.3 | E4: 0.4 | F4: 0.3 | G4: 0.3
B5: 青 | C5: 0.3 | D5: 0.9 | E5: 0.5 | F5: 0.8 | G5: 0.2
B6: 黄 | C6: 0.2 | D6: 0.4 | E6: 0.9 | F6: 0.7 | G6: 0.1
B7: 緑 | C7: 0.3 | D7: 0.3 | E7: 0.2 | F7: 0.9 | G7: 0.4
B8: 黒 | C8: 0.4 | D8: 0.7 | E8: 0.4 | F8: 0.5 | G8: 0.9
B9: ↑希望値
B14: 希望値 | C14: 緑
B15: 入力値 | C15: 黄
B17: 満足度 | C17: =descreate_eval(C15,C14,B3:G8,TRUE) -> 0.2

Sheet メビウス変換
B2: n | C2: 3
B5: 集合番号 | C5: 集合 | D5: ファジィ測度 | F5: メビウス反転値 | H5: 元のファジィ測度に戻す
B6: 0 | C6: =vtoset($C$2,B6) -> {} | D6: 0 | F6: =ex_mobius($C$2,B6,$D$6:$D$13) -> 0 | H6: =ex_mobius_fm($C$2,B6,$F$6:$F$13) -> 0
B7: =B6+1 -> 1 | C7: =vtoset($C$2,B7) -> {1} | D7: 0.2 | F7: =ex_mobius($C$2,B7,$D$6:$D$13) -> 0.2 | H7: =ex_mobius_fm($C$2,B7,$F$6:$F$13) -> 0.2
B8: =B7+1 -> 2 | C8: {2} | D8: 0.3 | F8: =ex_mobius($C$2,B8,$D$6:$D$13) -> 0.3 | H8: =ex_mobius_fm($C$2,B8,$F$6:$F$13) -> 0.3
B9: 3 | C9: {1,2} | D9: 0.4 | F9: -0.1 | H9: 0.4
B10: 4 | C10: {3} | D10: 0.5 | F10: 0.5 | H10: 0.5
B11: 5 | C11: {1,3} | D11: 0.6 | F11: -0.1 | H11: 0.6
B12: 6 | C12: {2,3} | D12: 0.8 | F12: 0 | H12: 0.8
B13: 7 | C13: {1,2,3} | D13: 1 | F13: 0.2 | H13: 1
